Cogmind - Beta 13 @@@ ROGUE MODE // 2024.06.06 @ 20:49:39 Player: Beast Result: Self-destructed Performance ------------- Evolutions (2) 1000 Regions Visited (4) 800 Robots Destroyed (11) 55 Value Destroyed (444) 444 Prototype IDs (2) 40 Alien Tech Used (0) 0 Bonus (0) 0 TOTAL SCORE: 2339 Bonus ------- None Cogmind --------- Core Integrity 330/550 Matter 300/300 Energy 100/100 System Corruption 0% Temperature Cool (9) Movement Core (100) Ox1 Location -8/Materials Parts ------- > --- POWER (1) -------- (None) > --- PROPULSION (3) --- (None) > --- UTILITY (5) ------ Small Storage Unit Advanced Weight Redist. System Improved Targeting Computer > --- WEAPON (2) ------- (None) > --- INVENTORY (8) ---- Ion Engine Ion Engine Aluminum Leg Wheel Advanced Weight Redist. System Advanced Weight Redist. System Peak State ------------ > --- POWER ------------ Light Nuclear Core > --- PROPULSION ------- Improved Aluminum Leg Improved Aluminum Leg > --- UTILITY ---------- Improved Heat Sink Small Storage Unit Advanced Weight Redist. System Improved Targeting Computer ECM Suite > --- WEAPON ----------- Improved Light Cannon Improved Light Cannon > --- INVENTORY -------- Ion Engine Ion Engine Aluminum Leg Wheel Advanced Weight Redist. System Advanced Weight Redist. System [Rating: 22] Favorites ----------- Power Light Nuclear Core Engine Ion Engine Power Core Light Nuclear Core Propulsion Improved Aluminum Leg Leg Improved Aluminum Leg Utility Small Storage Unit Device ECM Suite Storage Small Storage Unit Processor Improved Targeting Computer Weapon Improved Light Cannon Ballistic Gun Assault Rifle Ballistic Cannon Improved Light Cannon Build | -11 -10 -10 -9 -8 ------- Run | Yrd Mat Min Mat Mat Slots Evolved 4 | . . . 2 2 Power . | . . . . . Propulsion 1 | . . . . 1 Utility 3 | . . . 2 1 Weapon . | . . . . . Parts Attached 9 | . 4 2 . 3 Power 1 | . . 1 . . Engine . | . . . . . Core 1 | . . 1 . . Reactor . | . . . . . Propulsion 2 | . 2 . . . Treads . | . . . . . Leg 2 | . 2 . . . Wheel . | . . . . . Hover . | . . . . . Flight . | . . . . . Utility 4 | . . 1 . 3 Device 3 | . . 1 . 2 Storage . | . . . . . Processor 1 | . . . . 1 Hackware . | . . . . . Protection . | . . . . . Artifact . | . . . . . Weapon 2 | . 2 . . . Energy Gun . | . . . . . Energy Cannon . | . . . . . Ballistic Gun . | . . . . . Ballistic Cannon 2 | . 2 . . . Launcher . | . . . . . Special Weapon . | . . . . . Impact Weapon . | . . . . . Slashing Weapon . | . . . . . Piercing Weapon . | . . . . . Special Melee Weapon . | . . . . . Unidentified Prototypes . | . . . . . Parts Lost 6 | . . . . 6 Power 1 | . . . . 1 Propulsion 2 | . . . . 2 Utility 1 | . . . . 1 Weapon 2 | . . . . 2 Highest Loss Streak 6 | . . . . 6 To Critical Strikes . | . . . . . Average Slot Usage (%) 82 | . 84 91 77 72 Engine 3 | . 14 2 . . Core 8 | . . 11 11 5 Leg 23 | . 28 28 22 14 Device 8 | . . 6 11 19 Storage 12 | . 14 14 11 9 Processor 1 | . . . . 8 Ballistic Gun 1 | . 9 . . . Ballistic Cannon 22 | . 17 28 22 16 Naked Turns . | . . . . . Heaviest Build 21 | 13 18 20 20 21 Greatest Support 35 | 20 26 26 26 35 Greatest Overweight (x) 3 | . . . . 3 Average Overweight (x) . | . . . . . Largest Inventory Capacity 8 | . 8 8 8 8 Average Capacity 8 | . 8 8 8 8 Most Carried 8 | . 8 4 4 6 Average Carried 4 | . 4 3 4 5 Final Capacity 8 | 8 8 8 8 8 Final Carried 6 | 6 3 4 4 6 Class Distribution -------------------- 100% | Mutant Dominant Class ---------------- Mutant | -10/Materials Mutant | -10/Mines Mutant | -9/Materials Mutant | -8/Materials Resources | -11 -10 -10 -9 -8 ----------- Run | Yrd Mat Min Mat Mat Matter Collected 493 | 200 18 114 32 129 Remotely . | . . . . . Salvage Created 372 | . 16 137 73 146 Parts 18 | . 5 7 2 4 Haulers Intercepted . | . . . . . Recyclers Shooed . | . . . . . Parts Field Recycled . | . . . . . Retrieved Matter . | . . . . . Parts Self-Destructed . | . . . . . Prevented . | . . . . . Kills | -11 -10 -10 -9 -8 ------- Run | Yrd Mat Min Mat Mat Combat Hostiles Destroyed 10 | . . 4 2 4 Cannons 10 | . . 4 2 4 Classes Destroyed 3 | . 1 1 . 1 Watcher 1 | . 1 . . . Grunt 9 | . . 4 2 3 Duelist 1 | . . . . 1 Best Kill Streak 3 | . 1 2 2 3 Combat Bots Only 3 | . . 2 2 3 Max Kills in Single Turn 1 | . 1 1 1 1 Gunslinging . | . . . . . Exploded . | . . . . . Melee . | . . . . . Uniques/NPCs Destroyed . | . . . . . Combat | -11 -10 -10 -9 -8 -------- Run | Yrd Mat Min Mat Mat Hostile Shots Fired 95 | . . 12 3 80 Missed 30 | . . 4 2 24 Damage Taken 970 | . . 109 11 850 Core 245 | . . 25 . 220 Absorbed by Shields . | . . . . . Core Remaining (%) 96 | 100 . 90 100 . Volleys Fired 29 | . 1 8 4 16 Largest 2 | . 2 2 2 2 Hottest 78 | . 78 78 78 78 Shots Fired 57 | . 2 16 8 31 Gun . | . . . . . Cannon 57 | . 2 16 8 31 Launcher . | . . . . . Special . | . . . . . Kinetic 57 | . 2 16 8 31 Thermal . | . . . . . Explosive . | . . . . . Electromagnetic . | . . . . . Robot Hit Streak 12 | . 1 5 2 12 Robot Miss Streak 2 | . . 2 2 2 Penetration Max . | . . . . . Secondary Targets . | . . . . . Shots Hit Robots 36 | . 1 9 4 22 Core Hits 19 | . 1 6 2 10 Critical Kills . | . . . . . Critical Parts Destroyed . | . . . . . Critical Strikes 3 | . . . . 3 Blast 3 | . . . . 3 Melee Attacks . | . . . . . Impact . | . . . . . Slashing . | . . . . . Piercing . | . . . . . Sneak Attacks . | . . . . . Combat Hostiles . | . . . . . Follow-up Attacks . | . . . . . Damage Inflicted 756 | . 19 211 80 446 Guns . | . . . . . Cannons 756 | . 19 211 80 446 Explosions . | . . . . . Melee . | . . . . . Ramming . | . . . . . Kinetic 756 | . 19 211 80 446 Thermal . | . . . . . Explosive . | . . . . . Electromagnetic . | . . . . . Impact . | . . . . . Slashing . | . . . . . Piercing . | . . . . . Highest Corruption . | . . . . . Average Corruption . | . . . . . Corruption Purged . | . . . . . Corruption Blocked . | . . . . . Overload Shots . | . . . . . Overflow Damage . | . . . . . Projectiles . | . . . . . Explosions . | . . . . . Melee . | . . . . . Knockbacks 8 | . . 2 . 6 Impact . | . . . . . Kinetic 8 | . . 2 . 6 Secondary . | . . . . . Self-Inflicted Damage . | . . . . . Shots . | . . . . . Rammed . | . . . . . Targets Rammed . | . . . . . Kicked . | . . . . . Crushed . | . . . . . Highest Temperature 171 | . 18 141 30 171 Average Temperature 66 | . 12 64 14 94 Received Heat Transfer 495 | . . 84 6 405 Siege Activations . | . . . . . Robots Corrupted . | . . . . . Combat Hostiles . | . . . . . Parts Fried . | . . . . . Impact Corruptions . | . . . . . Robots Melted . | . . . . . Combat Hostiles . | . . . . . Parts Melted . | . . . . . Heat Transferred . | . . . . . Parts Sabotaged . | . . . . . Parts Stolen . | . . . . . Parts Stripped . | . . . . . Power Chain Reactions . | . . . . . Alert | -11 -10 -10 -9 -8 ------- Run | Yrd Mat Min Mat Mat Peak Influence 149 | . 32 128 130 149 Initial 54 | . . 12 49 54 Average 62 | . 5 71 72 91 Maximum Alert Level . | . . . . . Low Security (%) 100 | . 100 100 100 100 Level 1 . | . . . . . Level 2 . | . . . . . Level 3 . | . . . . . Level 4 . | . . . . . Level 5 . | . . . . . High Security . | . . . . . Max Security . | . . . . . Squads Dispatched 2 | . 1 . 1 . Investigation 1 | . 1 . . . Extermination . | . . . . . Reinforcement 1 | . . . 1 . Assault . | . . . . . Garrison . | . . . . . Intercept . | . . . . . Searches Triggered . | . . . . . Construction Impeded . | . . . . . Haulers Reinforced . | . . . . . Active Scanning Responses . | . . . . . Cargo Convoy Interrupts . | . . . . . Stealth | -11 -10 -10 -9 -8 --------- Run | Yrd Mat Min Mat Mat Distress Signals 3 | . . . 2 1 Communications Jammed . | . . . . . Distress Signals . | . . . . . Times Spotted 28 | . 2 4 5 17 Peak Tracking Total 9 | . 1 2 4 9 Tactical Retreats 5 | . . . 1 4 Traps | -11 -10 -10 -9 -8 ------- Run | Yrd Mat Min Mat Mat Traps Triggered 1 | . 1 . . . Indirectly . | . . . . . Trap Hack Attempts . | . . . . . Triggered . | . . . . . Disarmed . | . . . . . Reprogrammed . | . . . . . Reused . | . . . . . Traps Extracted . | . . . . . Installed . | . . . . . Triggered . | . . . . . Machines | -11 -10 -10 -9 -8 ---------- Run | Yrd Mat Min Mat Mat Machines Disabled 1 | . . 1 . . Max in Single Turn 1 | . . 1 . . Machines Repaired . | . . . . . Machines Dismantled . | . . . . . Machines Sabotaged . | . . . . . Overloaded Fab Kills . | . . . . . Hacking | -11 -10 -10 -9 -8 --------- Run | Yrd Mat Min Mat Mat Machines Accessed 1 | . 1 . . . Terminals 1 | . 1 . . . Fabricators . | . . . . . Repair Stations . | . . . . . Recycling Units . | . . . . . Scanalyzers . | . . . . . Garrison Access . | . . . . . Total Hacks 2 | . 2 . . . Successful 2 | . 2 . . . Failed . | . . . . . Catastrophic . | . . . . . Database Lockouts . | . . . . . Manual . | . . . . . Terminals 2 | . 2 . . . Fabricators . | . . . . . Repair Stations . | . . . . . Recycling Units . | . . . . . Scanalyzers . | . . . . . Garrison Access . | . . . . . Terminal Hacks 2 | . 2 . . . Prototype ID Bank 1 | . 1 . . . Transport Status 1 | . 1 . . . Fabricator Hacks . | . . . . . Repair Station Hacks . | . . . . . Recycling Unit Hacks . | . . . . . Scanalyzer . | . . . . . Garrison Access Hacks . | . . . . . Unauthorized Hacks . | . . . . . Terminals . | . . . . . Fabricators . | . . . . . Repair Stations . | . . . . . Recycling Units . | . . . . . Scanalyzers . | . . . . . Garrison Access . | . . . . . Data Cores Recovered . | . . . . . Used . | . . . . . Hacking Detections . | . . . . . Full Trace Events . | . . . . . Feedback Events . | . . . . . Feedback Blocked . | . . . . . Robot Schematics Acquired . | . . . . . Robots Built . | . . . . . Authchips . | . . . . . Time . | . . . . . Total Robot Build Rating . | . . . . . Part Schematics Acquired . | . . . . . Parts Built . | . . . . . Authchips . | . . . . . Time . | . . . . . Total Part Build Rating . | . . . . . Parts Repaired . | . . . . . Time . | . . . . . Parts Recycled . | . . . . . Recycled Matter . | . . . . . Retrieved Matter . | . . . . . Retrieved Components . | . . . . . Parts Scanalyzed . | . . . . . Part Schematics Acquired . | . . . . . Parts Damaged . | . . . . . Bothacking | -11 -10 -10 -9 -8 ------------ Run | Yrd Mat Min Mat Mat Used RIF Installer . | . . . . . Robots Hacked . | . . . . . Non-combat . | . . . . . Combat . | . . . . . Robot Hacks Applied . | . . . . . Relay Couplers Released . | . . . . . Fabnet Peak Effective % . | . . . . . Robots Rewired . | . . . . . Allies Hacked . | . . . . . Hacks Repelled . | . . . . . Allies | -11 -10 -10 -9 -8 -------- Run | Yrd Mat Min Mat Mat Total Allies . | . . . . . Largest Group . | . . . . . Highest-Rated Group . | . . . . . Highest-Rated Ally . | . . . . . Total Orders . | . . . . . Ally Attacks . | . . . . . Total Damage . | . . . . . Kills . | . . . . . Allies Corrupted . | . . . . . Allies Melted . | . . . . . Intel | -11 -10 -10 -9 -8 ------- Run | Yrd Mat Min Mat Mat Robot Analysis Total . | . . . . . Derelict Logs Recovered 2 | . . 2 . . Drone Launches . | . . . . . Drone Recoveries . | . . . . . Exploration | -11 -10 -10 -9 -8 ------------- Run | Yrd Mat Min Mat Mat Turns Passed 947 | . 184 340 236 187 Spaces Moved 684 | 1 143 259 187 94 Core 14 | . . . . 14 Treads . | . . . . . Legs 670 | 1 143 259 187 80 Wheels . | . . . . . Hover . | . . . . . Flight . | . . . . . Fastest Speed 100 | 120 120 120 120 100 Average Speed 121 | 120 120 120 120 133 Slowest Speed 200 | 120 120 120 120 200 Overloaded Moves . | . . . . . Propulsion Burnouts . | . . . . . Robots Hopped . | . . . . . Cave-ins Triggered . | . . . . . Exploration Rate (%) 26 | 2 30 68 24 10 Regions Visited 4 Branch Regions 1 Pre-discovered Areas . | . . . . . Known Exits Taken 1 | . . . 1 . Unknown Exits Taken 3 | 1 1 1 . . Scrap Searched 1 | . . 1 . . Spaces Dug . | . . . . . Terrain Destroyed 2 | . . 1 1 . Melee . | . . . . . Projectile 2 | . . 1 1 . AOE . | . . . . . Terrain Rammed . | . . . . . Walls Destroyed . | . . . . . Machines Disabled . | . . . . . Actions | -11 -10 -10 -9 -8 --------- Run | Yrd Mat Min Mat Mat Total 739 | . 156 271 190 122 Wait 10 | . . 3 . 7 Move 680 | . 142 258 186 94 Hop . | . . . . . Pick Up 3 | . 1 . . 2 Fast Attach 6 | . 2 1 . 3 Attach . | . . . . . Detach . | . . . . . Swap 3 | . 2 1 . . Drop 8 | . 8 . . . Fire 29 | . 1 8 4 16 Melee . | . . . . . Ram . | . . . . . Kick . | . . . . . Crush . | . . . . . Escape Stasis . | . . . . . Rewire . | . . . . . Trap . | . . . . . Miscellaneous . | . . . . . Route ------- -11/Scrapyard -10/Materials -10/Mines -9/Materials (discovered 3 exits: *Mat x2 / Min) -8/Materials History --------- Turn | Location | Event 1 | -11/Scrapyard | Discovered new exit (range 0) 1 | -11/Scrapyard | Entered Materials 172 | -10/Materials | Discovered new exit (range 11) 185 | -10/Materials | Entered Mines 302 | -10/Mines | Build established: Mutant 488 | -10/Mines | Learned location of 1 exit from Materials 497 | -10/Mines | Learned 2 Materials zone layouts 518 | -10/Mines | Discovered new exit (range 5) 525 | -10/Mines | Entered Materials 525 | -9/Materials | Evolved 2 slots: Utility x2 526 | -9/Materials | Identified exit to Mines 527 | -9/Materials | Identified exit to Materials 714 | -9/Materials | Discovered exit to Materials (range 15) 761 | -9/Materials | Entered another Materials area 761 | -8/Materials | Evolved 2 slots: Propulsion x1, Utility x1 948 | -8/Materials | Self-destructed Last Messages --------------- 00889_ Acquired 11 matter. 00892_ Acquired 27 matter. 00894_ Slug penetrates Wall. 00897_ Imp. Aluminum Leg destroyed. 00902_ Slug penetrates Wall. 00911_ H-55 Commando suffers critical hit (Blast). 00912_ Penetrated by Slug. 00912_ Imp. Aluminum Leg destroyed. 00914_ H-55 Commando Carbon-fiber Leg blasted off. 00915_ Imp. Light Cannon destroyed. 00922_ M-13 Machinist repairs H-55 Commando. 00922_ K-01 Serf collects debris. 00936_ Slug penetrates Wall. 00937_ K-01 Serf collects debris. 00940_ Imp. Light Cannon destroyed. 00942_ Penetrated by Slug. 00942_ ECM Suite destroyed. 00945_ W-25 Informer sends out distress signal. Map ----- +----------------------------------------------------+ | ??????????????????????????????????????????? | | ??????????????????????????????????????????? | | ??????????????????????????????????????????? | | ??????????????????????????????????????????? | | ??????????????????????????????????????????? | | ??????????????????????????????????????????? | | ??????????????????????????????????????????? | | ??????????????????????????????????????????? | | ??????????????????????????????????????????? | | ??????????????????????????????????????????? | | ???????????????? ???????????????????????? | | ???????????????? ???????????????????????? | | ???????????????? ???????????????????????? | | ???????????????? ???????????????????????? | | ????????????????# ???????????????????????? | | ????????????????# ???????????????????????? | | ????????????????# #?????????????? ???????? | | ????????????????# ?????????????? ???????? | | ????????????????# #?????????????? #??????? | | ????????????????# #?????????????? #??????? | | ????????????????# w#?????????????? #??????? | | ????????????????# Y#?????????????? #???#### | | ?????????????????g #?????????????? #???# | | ????????????????? +???????????###/#???# | | ?????????????????#g#???????????# #???# | | ?????????????????#@#???????????# #???# | | ?????????????????# #???????????# #???# | | ?????????????????# #???????????# #???## | | ?????????????????#h############# #????# | | ?????????????????# % =/ #????# | | ?????????????????############### % #????#! | | ??????????????????????????#######/#######%% | | ??????????????????? "%" %%= =! | | ??????????????????????????##+############ = | | ???????????????????????????????????#######+ | | ???????????????????????????????????# | | ???????????????????????????????????# """ | | ???????????????????????????????????# """ | | ???????????????????????????????????# """ = | | ???????????????????????????????????# | | ???????????????????????????????????# | | ???????????????????????????????????######## | | ??????????????????????????????????????????? | | ??????????????????????????????????????????? | | ??????????????????????????????????????????? | | ??????????????????????????????????????????? | | ??????????????????????????????????????????? | | ??????????????????????????????????????????? | | ??????????????????????????????????????????? | | ??????????????????????????????????????????? | +----------------------------------------------------+ Best States ------------- Heat Dissipation 45 Energy Generation 14 Energy Capacity 250 Matter Stores 300 Matter Capacity 300 Sight Range 16 Terrain Scan Density 10 ECM Strength 1 Additional Mass Support 9 Evasion (%) 55 Targeting Accuracy 6 Item Schematics ----------------- None Robot Schematics ------------------ None Fabricated ------------ Nothing Alien Tech Used ----------------- None Achievements -------------- None Challenges ------------ None Game ------ Seed OpticalArchitectOptics Manual? 0 Play Time 00:13:08 Cumulative 81.9 hours Start 2024.06.06 @ 20:31:29 End 2024.06.06 @ 20:49:39 Sessions 1 Manual Loads 0 Difficulty Rogue Special Mode None Game No. 87 Rogue 86 Adventurer 0 Explorer 1 Win Type - Total 0 Types 0/0/0/0/0/0/0/0/0 Lore% 38 Gallery% 57 Achievement% 36 Wizard Run 0 Options --------- Layout 1 ASCII 0 Keyboard 0 Movement Mouse Keybinds 0 Fullscreen 1 Font 24/Smallcaps Map View 50x35 Zoom Use 0% Tactical HUD 1 Map Filters NONE Filters NONE Steam 1 RUN: 64a36718-2221-4392-ac3c-5ed58affd638